[Event "*** Titled Tuesday Blitz"]
[Site "Chess.com"]
[Date "2020.04.14"]
[Round "7"]
[White "gixfantastix"]
[Black "DDTerziev04"]
[Result "0-1"]
[WhiteElo "2071"]
[BlackElo "2262"]
[TimeControl "180+1"]
[EndTime "11:14:31 PDT"]
[Termination "DDTerziev04 won on time"]

1. e4 {[%clk 0:03:00.9]} 1... e6 {[%clk 0:02:59.5]} 2. d4 {[%clk 0:03:00]} 2...
d5 {[%clk 0:02:59.6]} 3. Nc3 {[%clk 0:03:00.6]} 3... Bb4 {[%clk 0:02:58.4]} 4.
e5 {[%clk 0:02:59.4]} 4... c5 {[%clk 0:02:57.8]} 5. a3 {[%clk 0:02:59.5]} 5...
Ba5 {[%clk 0:02:57.4]} 6. Qg4 {[%clk 0:02:30.1]} 6... Ne7 {[%clk 0:02:31.4]} 7.
Qxg7 {[%clk 0:02:09.6]} 7... Rg8 {[%clk 0:02:30.1]} 8. Qxh7 {[%clk 0:02:10]}
8... cxd4 {[%clk 0:02:30]} 9. b4 {[%clk 0:02:08.9]} 9... dxc3 {[%clk 0:02:27]}
10. bxa5 {[%clk 0:02:08.6]} 10... Qxa5 {[%clk 0:02:25.8]} 11. h4 {[%clk
0:01:49.5]} 11... Nbc6 {[%clk 0:02:22.4]} 12. Nf3 {[%clk 0:01:44.7]} 12... Bd7
{[%clk 0:02:19.8]} 13. h5 {[%clk 0:01:44.7]} 13... O-O-O {[%clk 0:02:17.4]} 14.
h6 {[%clk 0:01:40.6]} 14... Ng6 {[%clk 0:02:00.3]} 15. Qxf7 {[%clk 0:01:01.8]}
15... Ngxe5 {[%clk 0:01:55.5]} 16. Nxe5 {[%clk 0:00:46.4]} 16... Nxe5 {[%clk
0:01:56.4]} 17. Qe7 {[%clk 0:00:39.6]} 17... Qb6 {[%clk 0:01:01.9]} 18. Qb4
{[%clk 0:00:20.2]} 18... Qc7 {[%clk 0:00:21.4]} 19. Be3 {[%clk 0:00:15.8]} 19...
Ng4 {[%clk 0:00:17]} 20. Bxa7 {[%clk 0:00:14.7]} 20... Qe5+ {[%clk 0:00:16.4]}
21. Be2 {[%clk 0:00:11]} 21... Rgf8 {[%clk 0:00:14.6]} 22. Qc5+ {[%clk
0:00:08.1]} 22... Bc6 {[%clk 0:00:14.6]} 23. h7 {[%clk 0:00:07.4]} 23... Nxf2
{[%clk 0:00:13.5]} 24. Qxf2 {[%clk 0:00:05.7]} 24... Rxf2 {[%clk 0:00:12.6]} 25.
Bxf2 {[%clk 0:00:06.3]} 25... Qf5 {[%clk 0:00:10.9]} 26. h8=Q {[%clk 0:00:05.2]}
26... Rxh8 {[%clk 0:00:10.4]} 27. Rxh8+ {[%clk 0:00:06.1]} 27... Kc7 {[%clk
0:00:10.9]} 28. Bd3 {[%clk 0:00:04.3]} 28... Qe5+ {[%clk 0:00:10.6]} 29. Kf1
{[%clk 0:00:03.9]} 29... Qg5 {[%clk 0:00:10.1]} 30. Rh7+ {[%clk 0:00:03.2]}
30... Kd6 {[%clk 0:00:09.5]} 31. a4 {[%clk 0:00:03.3]} 31... d4 {[%clk
0:00:09.7]} 32. Rh2 {[%clk 0:00:01.6]} 32... Qf4 {[%clk 0:00:08.7]} 33. Kg1
{[%clk 0:00:02.5]} 33... Qg5 {[%clk 0:00:07.8]} 34. Rf1 {[%clk 0:00:02.6]} 34...
Qd2 {[%clk 0:00:07]} 35. Bg3+ {[%clk 0:00:01.7]} 35... Kc5 {[%clk 0:00:07.2]}
36. Bf2 {[%clk 0:00:01.1]} 36... Qg5 {[%clk 0:00:06.3]} 0-1

[Event "*** Titled Tuesday Blitz"]
[Site "Chess.com"]
[Date "2020.04.14"]
[Round "7"]
[White "lokomotiv777"]
[Black "gui_borba"]
[Result "0-1"]
[WhiteElo "2152"]
[BlackElo "2341"]
[TimeControl "180+1"]
[EndTime "11:14:32 PDT"]
[Termination "gui_borba won by resignation"]

1. e4 {[%clk 0:03:00.9]} 1... c5 {[%clk 0:03:00.3]} 2. Nf3 {[%clk 0:03:00.1]}
2... e6 {[%clk 0:03:00.8]} 3. d4 {[%clk 0:02:59.4]} 3... cxd4 {[%clk 0:03:01.7]}
4. Nxd4 {[%clk 0:02:58.9]} 4... Nf6 {[%clk 0:03:02.1]} 5. Nc3 {[%clk 0:02:58.1]}
5... d6 {[%clk 0:03:02.4]} 6. g3 {[%clk 0:02:57.4]} 6... Nc6 {[%clk 0:03:00.5]}
7. Bg2 {[%clk 0:02:56.7]} 7... Bd7 {[%clk 0:03:00.9]} 8. Nb3 {[%clk 0:02:53.9]}
8... Be7 {[%clk 0:03:00.8]} 9. O-O {[%clk 0:02:51.3]} 9... O-O {[%clk 0:03:00]}
10. Bf4 {[%clk 0:02:47.9]} 10... Ne5 {[%clk 0:02:55.6]} 11. h3 {[%clk
0:02:15.4]} 11... Rc8 {[%clk 0:02:51.1]} 12. Qe2 {[%clk 0:02:09]} 12... a6
{[%clk 0:02:47.5]} 13. Rfd1 {[%clk 0:02:08.1]} 13... Qc7 {[%clk 0:02:43.4]} 14.
Nd2 {[%clk 0:02:00]} 14... b5 {[%clk 0:02:40.2]} 15. a3 {[%clk 0:01:59.6]} 15...
Bc6 {[%clk 0:02:36.3]} 16. Bg5 {[%clk 0:01:50.3]} 16... h6 {[%clk 0:02:34.2]}
17. Be3 {[%clk 0:01:50]} 17... Qb7 {[%clk 0:02:13.2]} 18. f4 {[%clk 0:01:48.3]}
18... Ned7 {[%clk 0:02:12.3]} 19. Bf2 {[%clk 0:01:46.7]} 19... Rfd8 {[%clk
0:02:07.1]} 20. g4 {[%clk 0:01:41.2]} 20... Nc5 {[%clk 0:01:58.9]} 21. h4 {[%clk
0:01:26.5]} 21... Nfd7 {[%clk 0:01:52.2]} 22. g5 {[%clk 0:01:25.7]} 22... hxg5
{[%clk 0:01:49.3]} 23. hxg5 {[%clk 0:01:25.3]} 23... g6 {[%clk 0:01:48.3]} 24.
Bf3 {[%clk 0:01:21.4]} 24... Kg7 {[%clk 0:01:41.1]} 25. b4 {[%clk 0:01:14.4]}
25... Na4 {[%clk 0:01:30.6]} 26. Nxa4 {[%clk 0:01:12.5]} 26... bxa4 {[%clk
0:01:31.5]} 27. c4 {[%clk 0:01:06.8]} 27... Rh8 {[%clk 0:01:28]} 28. Kg2 {[%clk
0:00:50.3]} 28... e5 {[%clk 0:01:17.7]} 29. Bg3 {[%clk 0:00:40.7]} 29... exf4
{[%clk 0:01:15.4]} 30. Bxf4 {[%clk 0:00:40.7]} 30... Ne5 {[%clk 0:01:16.3]} 31.
Bxe5+ {[%clk 0:00:35.2]} 31... dxe5 {[%clk 0:01:15.4]} 32. c5 {[%clk 0:00:28.2]}
32... Bxg5 {[%clk 0:01:10.3]} 33. Nc4 {[%clk 0:00:28.2]} 33... Bf4 {[%clk
0:01:07.6]} 34. Rh1 {[%clk 0:00:27.2]} 34... Qe7 {[%clk 0:01:02.8]} 35. Nd6
{[%clk 0:00:25.3]} 35... Qg5+ {[%clk 0:00:55.9]} 36. Bg4 {[%clk 0:00:25.4]}
36... Rcd8 {[%clk 0:00:51.1]} 37. Rxh8 {[%clk 0:00:21.5]} 37... Rxh8 {[%clk
0:00:50.3]} 38. Rh1 {[%clk 0:00:22.1]} 38... f5 {[%clk 0:00:44.4]} 39. Rxh8
{[%clk 0:00:20.2]} 39... Kxh8 {[%clk 0:00:45.3]} 40. Kf1 {[%clk 0:00:15.5]}
40... fxg4 {[%clk 0:00:43.9]} 41. Qg2 {[%clk 0:00:14.6]} 41... Qh4 {[%clk
0:00:39.1]} 42. Ke2 {[%clk 0:00:13.7]} 42... g3 {[%clk 0:00:35]} 43. Nf7+ {[%clk
0:00:12.6]} 43... Kg7 {[%clk 0:00:34.4]} 44. Nd8 {[%clk 0:00:12.7]} 44... Qh2
{[%clk 0:00:31.8]} 45. Kf3 {[%clk 0:00:10.7]} 45... Bxe4+ {[%clk 0:00:30.5]} 46.
Kg4 {[%clk 0:00:10.6]} 46... Qxg2 {[%clk 0:00:31.4]} 47. Ne6+ {[%clk 0:00:10]}
47... Kf6 {[%clk 0:00:28.8]} 0-1

[Event "*** Titled Tuesday Blitz"]
[Site "Chess.com"]
[Date "2020.04.14"]
[Round "7"]
[White "pheonixking2000"]
[Black "VishnuPrasanna"]
[Result "0-1"]
[WhiteElo "2827"]
[BlackElo "2711"]
[TimeControl "180+1"]
[EndTime "11:14:33 PDT"]
[Termination "VishnuPrasanna won by resignation"]

1. d4 {[%clk 0:03:00.9]} 1... Nf6 {[%clk 0:02:58.1]} 2. Nf3 {[%clk 0:02:59.1]}
2... g6 {[%clk 0:02:57.9]} 3. c4 {[%clk 0:02:58.3]} 3... Bg7 {[%clk 0:02:58.3]}
4. Nc3 {[%clk 0:02:57.5]} 4... d5 {[%clk 0:02:58.2]} 5. cxd5 {[%clk 0:02:57.2]}
5... Nxd5 {[%clk 0:02:59.1]} 6. e4 {[%clk 0:02:57.9]} 6... Nxc3 {[%clk
0:02:59.5]} 7. bxc3 {[%clk 0:02:58.5]} 7... c5 {[%clk 0:03:00.1]} 8. Rb1 {[%clk
0:02:59.2]} 8... O-O {[%clk 0:02:59.2]} 9. Be2 {[%clk 0:02:59.7]} 9... Nc6
{[%clk 0:02:59.2]} 10. d5 {[%clk 0:02:57.7]} 10... Ne5 {[%clk 0:02:59.3]} 11.
O-O {[%clk 0:02:24.7]} 11... Nxf3+ {[%clk 0:02:55.3]} 12. Bxf3 {[%clk
0:02:25.6]} 12... Bxc3 {[%clk 0:02:53.9]} 13. Bf4 {[%clk 0:02:25.9]} 13... Bg7
{[%clk 0:02:47.6]} 14. e5 {[%clk 0:02:21.9]} 14... b6 {[%clk 0:02:42.6]} 15. d6
{[%clk 0:02:15.5]} 15... Rb8 {[%clk 0:02:41.8]} 16. e6 {[%clk 0:01:56]} 16...
Bxe6 {[%clk 0:02:40.9]} 17. dxe7 {[%clk 0:01:54.5]} 17... Qxe7 {[%clk
0:02:41.8]} 18. Bxb8 {[%clk 0:01:54.7]} 18... Rxb8 {[%clk 0:02:42]} 19. Re1
{[%clk 0:01:54.1]} 19... Bd4 {[%clk 0:02:34.5]} 20. Qa4 {[%clk 0:01:50.9]} 20...
a5 {[%clk 0:02:12.8]} 21. Qc6 {[%clk 0:01:47]} 21... Qd8 {[%clk 0:02:03.4]} 22.
Rxe6 {[%clk 0:01:41.8]} 22... fxe6 {[%clk 0:02:03]} 23. Qxe6+ {[%clk 0:01:42.7]}
23... Kg7 {[%clk 0:02:03.4]} 24. Re1 {[%clk 0:01:41.5]} 24... Qc7 {[%clk
0:02:00.4]} 25. a4 {[%clk 0:01:18.1]} 25... Rf8 {[%clk 0:01:59.4]} 26. Qe7+
{[%clk 0:01:14.3]} 26... Qxe7 {[%clk 0:01:58.7]} 27. Rxe7+ {[%clk 0:01:15.2]}
27... Rf7 {[%clk 0:01:58.5]} 28. Re6 {[%clk 0:01:14.7]} 28... c4 {[%clk
0:01:55.4]} 29. Rc6 {[%clk 0:01:10.5]} 29... Bc5 {[%clk 0:01:54.3]} 30. Bd5
{[%clk 0:01:04.3]} 30... Rd7 {[%clk 0:01:53.6]} 31. Bxc4 {[%clk 0:01:01.1]}
31... Rd1+ {[%clk 0:01:52.4]} 32. Bf1 {[%clk 0:01:01.6]} 32... Ra1 {[%clk
0:01:52.9]} 33. g3 {[%clk 0:00:52.7]} 33... Rxa4 {[%clk 0:01:52.3]} 34. Rc7+
{[%clk 0:00:51.8]} 34... Kf6 {[%clk 0:01:51.3]} 35. Rxh7 {[%clk 0:00:51.5]}
35... Ra2 {[%clk 0:01:51.4]} 36. Bc4 {[%clk 0:00:49.1]} 36... Rc2 {[%clk
0:01:48.4]} 37. Bb3 {[%clk 0:00:45.3]} 37... Rb2 {[%clk 0:01:48.1]} 38. Bg8
{[%clk 0:00:41.9]} 38... a4 {[%clk 0:01:46.5]} 39. h4 {[%clk 0:00:39.6]} 39...
a3 {[%clk 0:01:43.7]} 40. Kg2 {[%clk 0:00:40.1]} 40... Rxf2+ {[%clk 0:01:40]}
41. Kh3 {[%clk 0:00:40.1]} 41... b5 {[%clk 0:01:40.6]} 42. Kg4 {[%clk
0:00:29.8]} 42... Ke5 {[%clk 0:01:30]} 43. Rb7 {[%clk 0:00:21.8]} 43... b4
{[%clk 0:01:29.2]} 44. Kg5 {[%clk 0:00:22.3]} 44... Rf3 {[%clk 0:01:25.9]} 45.
g4 {[%clk 0:00:18.9]} 45... Rf6 {[%clk 0:01:22.8]} 46. Kh6 {[%clk 0:00:18.7]}
46... g5+ {[%clk 0:01:19.5]} 47. Kh5 {[%clk 0:00:16.8]} 47... gxh4 {[%clk
0:01:19.2]} 48. Kxh4 {[%clk 0:00:16.2]} 48... Rf2 {[%clk 0:01:14.7]} 49. Rb5
{[%clk 0:00:09.5]} 49... Kd6 {[%clk 0:01:13.4]} 50. g5 {[%clk 0:00:09.2]} 50...
Kc6 {[%clk 0:01:13.1]} 51. Ra5 {[%clk 0:00:09.4]} 51... Rg2 {[%clk 0:01:07.5]}
52. Kh5 {[%clk 0:00:08.2]} 52... Kb6 {[%clk 0:01:06.6]} 53. Ra8 {[%clk
0:00:07.5]} 53... Be3 {[%clk 0:01:06.5]} 54. Rb8+ {[%clk 0:00:05.7]} 54... Kc5
{[%clk 0:01:03.7]} 55. Rc8+ {[%clk 0:00:06.1]} 55... Kd6 {[%clk 0:01:03]} 56.
Rd8+ {[%clk 0:00:04]} 56... Kc7 {[%clk 0:00:59]} 57. Rd5 {[%clk 0:00:02.7]}
57... a2 {[%clk 0:00:57.5]} 58. Ra5 {[%clk 0:00:02.7]} 58... Rxg5+ {[%clk
0:00:58.1]} 59. Rxg5 {[%clk 0:00:02.1]} 59... a1=Q {[%clk 0:00:58]} 60. Rg7+
{[%clk 0:00:02.6]} 60... Qxg7 {[%clk 0:00:57.6]} 0-1

[Event "*** Titled Tuesday Blitz"]
[Site "Chess.com"]
[Date "2020.04.14"]
[Round "7"]
[White "VerdeNotte"]
[Black "aakankshachess"]
[Result "1-0"]
[WhiteElo "2664"]
[BlackElo "2445"]
[TimeControl "180+1"]
[EndTime "11:14:33 PDT"]
[Termination "VerdeNotte won by resignation"]

1. Nf3 {[%clk 0:03:00.6]} 1... Nf6 {[%clk 0:03:00]} 2. c4 {[%clk 0:02:59.9]}
2... g6 {[%clk 0:02:59.1]} 3. b4 {[%clk 0:02:59.8]} 3... Bg7 {[%clk 0:02:58.8]}
4. Bb2 {[%clk 0:03:00.3]} 4... O-O {[%clk 0:02:59.1]} 5. e3 {[%clk 0:02:59.3]}
5... d5 {[%clk 0:02:59.2]} 6. cxd5 {[%clk 0:02:58.9]} 6... Qxd5 {[%clk
0:02:58.2]} 7. Nc3 {[%clk 0:02:58.8]} 7... Qd8 {[%clk 0:02:58.3]} 8. Bc4 {[%clk
0:02:54.1]} 8... Nc6 {[%clk 0:02:58.1]} 9. b5 {[%clk 0:02:53.9]} 9... Na5 {[%clk
0:02:57.8]} 10. Be2 {[%clk 0:02:52]} 10... Bg4 {[%clk 0:02:55.1]} 11. O-O {[%clk
0:02:50.2]} 11... Bxf3 {[%clk 0:02:51.2]} 12. Bxf3 {[%clk 0:02:50]} 12... e5
{[%clk 0:02:51.9]} 13. d3 {[%clk 0:02:48.1]} 13... c6 {[%clk 0:02:50.1]} 14. a4
{[%clk 0:02:46.7]} 14... Rc8 {[%clk 0:02:47.4]} 15. Ba3 {[%clk 0:02:31.4]} 15...
Re8 {[%clk 0:02:46.8]} 16. Bb4 {[%clk 0:02:31.7]} 16... c5 {[%clk 0:02:42.9]}
17. Ba3 {[%clk 0:02:20.7]} 17... b6 {[%clk 0:02:41.5]} 18. Qe2 {[%clk
0:02:14.6]} 18... Qc7 {[%clk 0:02:38.4]} 19. Nd5 {[%clk 0:02:12.7]} 19... Qd6
{[%clk 0:02:35.8]} 20. Nxf6+ {[%clk 0:02:06.7]} 20... Bxf6 {[%clk 0:02:35.9]}
21. Rac1 {[%clk 0:02:02]} 21... Qe7 {[%clk 0:02:28.3]} 22. Bd5 {[%clk
0:01:59.5]} 22... Red8 {[%clk 0:02:27.9]} 23. e4 {[%clk 0:01:59.5]} 23... Nb7
{[%clk 0:02:28.2]} 24. f4 {[%clk 0:01:55.9]} 24... Nd6 {[%clk 0:02:22.3]} 25.
Bb2 {[%clk 0:01:50]} 25... exf4 {[%clk 0:02:14.6]} 26. Rxf4 {[%clk 0:01:48.6]}
26... Bg5 {[%clk 0:02:08.8]} 27. Qf3 {[%clk 0:01:37.2]} 27... Bxf4 {[%clk
0:01:53.9]} 28. Qxf4 {[%clk 0:01:38.1]} 28... Nf5 {[%clk 0:01:53.8]} 29. Rf1
{[%clk 0:01:04.5]} 29... Rxd5 {[%clk 0:01:39.4]} 30. exd5 {[%clk 0:01:05.4]}
30... Rd8 {[%clk 0:01:39.6]} 31. Qe4 {[%clk 0:01:03.1]} 31... Qd6 {[%clk
0:01:29.7]} 32. g4 {[%clk 0:01:01.7]} 32... Nd4 {[%clk 0:01:29]} 33. Bxd4 {[%clk
0:00:58.3]} 33... cxd4 {[%clk 0:01:29.4]} 34. Qxd4 {[%clk 0:00:56.6]} 34... Qxd5
{[%clk 0:01:29.7]} 35. Qxd5 {[%clk 0:00:50.9]} 35... Rxd5 {[%clk 0:01:30.6]} 36.
Rc1 {[%clk 0:00:50.3]} 36... Rd4 {[%clk 0:01:29]} 37. Rc4 {[%clk 0:00:49.8]}
37... Rxd3 {[%clk 0:01:23.7]} 38. Rc7 {[%clk 0:00:49.8]} 38... Rd4 {[%clk
0:01:22.6]} 39. Rxa7 {[%clk 0:00:50]} 39... Rxg4+ {[%clk 0:01:23.1]} 40. Kf2
{[%clk 0:00:50.5]} 40... Rb4 {[%clk 0:01:23.1]} 41. Ke3 {[%clk 0:00:48.4]} 41...
h5 {[%clk 0:01:21.9]} 42. Kd3 {[%clk 0:00:47.9]} 42... g5 {[%clk 0:01:22.1]} 43.
Kc3 {[%clk 0:00:47.4]} 43... Rb1 {[%clk 0:01:20.8]} 44. Ra6 {[%clk 0:00:42.4]}
44... Ra1 {[%clk 0:01:19.1]} 45. Kb2 {[%clk 0:00:42.3]} 45... Rh1 {[%clk
0:01:17.8]} 46. Rxb6 {[%clk 0:00:41.7]} 46... Rxh2+ {[%clk 0:01:18.5]} 47. Kb3
{[%clk 0:00:42]} 47... g4 {[%clk 0:01:18.9]} 48. Rb8+ {[%clk 0:00:38]} 48... Kg7
{[%clk 0:01:18.6]} 49. b6 {[%clk 0:00:38.5]} 49... g3 {[%clk 0:01:18.4]} 50. b7
{[%clk 0:00:38.6]} 50... Rh1 {[%clk 0:01:13.6]} 51. Rg8+ {[%clk 0:00:36.6]}
51... Kh7 {[%clk 0:01:09.1]} 52. Kb2 {[%clk 0:00:29.3]} 52... Kxg8 {[%clk
0:00:52]} 53. b8=Q+ {[%clk 0:00:29]} 53... Kh7 {[%clk 0:00:52.4]} 54. Qxg3
{[%clk 0:00:28.2]} 54... h4 {[%clk 0:00:49.4]} 55. Qd3+ {[%clk 0:00:26.7]} 55...
Kg8 {[%clk 0:00:49.6]} 56. a5 {[%clk 0:00:21.9]} 56... h3 {[%clk 0:00:48.8]} 57.
a6 {[%clk 0:00:17.3]} 57... h2 {[%clk 0:00:48.1]} 58. Qg3+ {[%clk 0:00:14.3]}
58... Kh7 {[%clk 0:00:45.2]} 59. Qh3+ {[%clk 0:00:13.2]} 59... Kg7 {[%clk
0:00:45.5]} 60. Qg2+ {[%clk 0:00:14.1]} 60... Kf6 {[%clk 0:00:45.3]} 61. Qxh1
{[%clk 0:00:15]} 1-0

[Event "*** Titled Tuesday Blitz"]
[Site "Chess.com"]
[Date "2020.04.14"]
[Round "7"]
[White "IljaZaragatski"]
[Black "Larina_Marija"]
[Result "1-0"]
[WhiteElo "2516"]
[BlackElo "2327"]
[TimeControl "180+1"]
[EndTime "11:14:33 PDT"]
[Termination "IljaZaragatski won on time"]

1. c4 {[%clk 0:03:00.9]} 1... e5 {[%clk 0:02:58.8]} 2. g3 {[%clk 0:03:00.6]}
2... f5 {[%clk 0:02:57.9]} 3. d4 {[%clk 0:02:59.8]} 3... e4 {[%clk 0:02:52.9]}
4. Nc3 {[%clk 0:02:58.9]} 4... Nf6 {[%clk 0:02:52.6]} 5. Bh3 {[%clk 0:02:51.4]}
5... d6 {[%clk 0:02:50.3]} 6. f3 {[%clk 0:02:49.5]} 6... Be7 {[%clk 0:02:38.4]}
7. Qc2 {[%clk 0:02:31.7]} 7... O-O {[%clk 0:02:32.4]} 8. Bg5 {[%clk 0:02:24.6]}
8... Nc6 {[%clk 0:02:26.5]} 9. O-O-O {[%clk 0:02:17.1]} 9... Qe8 {[%clk
0:02:11.2]} 10. fxe4 {[%clk 0:02:11.9]} 10... Nxe4 {[%clk 0:02:05]} 11. Bxe7
{[%clk 0:01:54.6]} 11... Qxe7 {[%clk 0:02:03.1]} 12. Nxe4 {[%clk 0:01:54.2]}
12... fxe4 {[%clk 0:02:02.6]} 13. Bxc8 {[%clk 0:01:48]} 13... Raxc8 {[%clk
0:02:01.4]} 14. Nh3 {[%clk 0:01:48.6]} 14... Rce8 {[%clk 0:01:43.3]} 15. Nf4
{[%clk 0:01:48]} 15... Qd7 {[%clk 0:01:30.9]} 16. d5 {[%clk 0:01:30.5]} 16...
Nb4 {[%clk 0:01:28.2]} 17. Qb3 {[%clk 0:01:29.2]} 17... a5 {[%clk 0:01:24.4]}
18. a3 {[%clk 0:01:20.6]} 18... Na6 {[%clk 0:01:24.2]} 19. Qxb7 {[%clk
0:01:20.2]} 19... Nc5 {[%clk 0:01:23.3]} 20. Qc6 {[%clk 0:01:20.2]} 20... a4
{[%clk 0:01:05.5]} 21. Qxd7 {[%clk 0:01:17.2]} 21... Nxd7 {[%clk 0:01:05.3]} 22.
Rhf1 {[%clk 0:01:16.3]} 22... Nc5 {[%clk 0:01:03.8]} 23. Kc2 {[%clk 0:01:09.5]}
23... Rb8 {[%clk 0:01:01.2]} 24. Ne6 {[%clk 0:01:06.7]} 24... Nxe6 {[%clk
0:01:00.8]} 25. dxe6 {[%clk 0:01:06]} 25... Rfe8 {[%clk 0:00:59.5]} 26. Rd5
{[%clk 0:00:59.2]} 26... Ra8 {[%clk 0:00:47]} 27. Rf7 {[%clk 0:00:56.8]} 27...
Rxe6 {[%clk 0:00:23.5]} 28. Rxc7 {[%clk 0:00:56.1]} 28... Rf8 {[%clk 0:00:22.4]}
29. Ra5 {[%clk 0:00:51.7]} 29... h5 {[%clk 0:00:19.7]} 30. Rxh5 {[%clk
0:00:45.7]} 30... Rf2 {[%clk 0:00:18.7]} 31. Kd2 {[%clk 0:00:38.7]} 31... e3+
{[%clk 0:00:18.5]} 32. Kd3 {[%clk 0:00:38.5]} 32... Rf1 {[%clk 0:00:16.9]} 33.
Rg5 {[%clk 0:00:38.4]} 33... Rd1+ {[%clk 0:00:15.9]} 34. Kc3 {[%clk 0:00:37.9]}
34... Rc1+ {[%clk 0:00:15.5]} 35. Kb4 {[%clk 0:00:34.5]} 35... Rc2 {[%clk
0:00:13.8]} 36. Rgxg7+ {[%clk 0:00:34.4]} 36... Kf8 {[%clk 0:00:13.4]} 37. Rgf7+
{[%clk 0:00:27.5]} 37... Ke8 {[%clk 0:00:11]} 38. Rh7 {[%clk 0:00:25.8]} 38...
Rxb2+ {[%clk 0:00:09.4]} 39. Kxa4 {[%clk 0:00:25.5]} 39... Kd8 {[%clk
0:00:07.3]} 40. Ra7 {[%clk 0:00:25.7]} 40... Kc8 {[%clk 0:00:01.8]} 41. Rh8+
{[%clk 0:00:24.9]} 1-0

[Event "*** Titled Tuesday Blitz"]
[Site "Chess.com"]
[Date "2020.04.14"]
[Round "7"]
[White "Harut-1998"]
[Black "Gordima"]
[Result "0-1"]
[WhiteElo "2583"]
[BlackElo "2760"]
[TimeControl "180+1"]
[EndTime "11:14:35 PDT"]
[Termination "Gordima won by resignation"]

1. d4 {[%clk 0:03:00.9]} 1... Nf6 {[%clk 0:02:52]} 2. c4 {[%clk 0:02:59.4]} 2...
e6 {[%clk 0:02:52.2]} 3. g3 {[%clk 0:02:58.5]} 3... d5 {[%clk 0:02:51.6]} 4. Nf3
{[%clk 0:02:58]} 4... dxc4 {[%clk 0:02:52]} 5. Bg2 {[%clk 0:02:57.8]} 5... a6
{[%clk 0:02:51.7]} 6. O-O {[%clk 0:02:55.8]} 6... Nc6 {[%clk 0:02:51.1]} 7. e3
{[%clk 0:02:51.8]} 7... Bd7 {[%clk 0:02:50.3]} 8. Qe2 {[%clk 0:02:35.1]} 8...
Bd6 {[%clk 0:02:48.9]} 9. Qxc4 {[%clk 0:02:23.4]} 9... O-O {[%clk 0:02:44.3]}
10. Nc3 {[%clk 0:02:17.3]} 10... b5 {[%clk 0:02:35.4]} 11. Qd3 {[%clk
0:02:12.7]} 11... e5 {[%clk 0:02:27.9]} 12. dxe5 {[%clk 0:02:01.8]} 12... Nxe5
{[%clk 0:02:28.8]} 13. Nxe5 {[%clk 0:01:47.3]} 13... Bxe5 {[%clk 0:02:26.8]} 14.
Bxa8 {[%clk 0:01:45.8]} 14... Qxa8 {[%clk 0:02:27.7]} 15. e4 {[%clk 0:01:35.6]}
15... Bh3 {[%clk 0:01:47]} 16. Re1 {[%clk 0:01:30.5]} 16... Rd8 {[%clk
0:01:44.3]} 17. Qc2 {[%clk 0:01:21]} 17... b4 {[%clk 0:01:01.8]} 18. Nd5 {[%clk
0:00:55.7]} 18... Nxd5 {[%clk 0:00:55.1]} 19. exd5 {[%clk 0:00:56.6]} 19... Qxd5
{[%clk 0:00:55.2]} 20. f4 {[%clk 0:00:56.3]} 20... Bf6 {[%clk 0:00:46.5]} 21.
Be3 {[%clk 0:00:52.5]} 21... Bg4 {[%clk 0:00:38.2]} 22. Qb3 {[%clk 0:00:40.6]}
22... Qb7 {[%clk 0:00:29.9]} 23. Rac1 {[%clk 0:00:30.7]} 23... h5 {[%clk
0:00:29.6]} 24. Rc4 {[%clk 0:00:22]} 24... h4 {[%clk 0:00:28.6]} 25. Rxb4 {[%clk
0:00:16.2]} 25... Qa8 {[%clk 0:00:22.4]} 26. Rb7 {[%clk 0:00:15.4]} 26... h3
{[%clk 0:00:19.6]} 27. Rc1 {[%clk 0:00:10.7]} 27... Bc8 {[%clk 0:00:16.3]} 28.
Rcxc7 {[%clk 0:00:07]} 28... Bxb7 {[%clk 0:00:15.7]} 29. Qxb7 {[%clk 0:00:07.9]}
29... Rd1+ {[%clk 0:00:14.6]} 30. Kf2 {[%clk 0:00:07.1]} 30... Qxb7 {[%clk
0:00:11.8]} 31. Rxb7 {[%clk 0:00:06.3]} 31... Rh1 {[%clk 0:00:12.4]} 32. g4
{[%clk 0:00:05.2]} 32... Bh4+ {[%clk 0:00:10.4]} 33. Kf3 {[%clk 0:00:05]} 33...
Rxh2 {[%clk 0:00:10.9]} 34. Rb8+ {[%clk 0:00:04.9]} 34... Kh7 {[%clk 0:00:10.8]}
35. g5 {[%clk 0:00:05.4]} 35... Rc2 {[%clk 0:00:09.2]} 36. Bg1 {[%clk
0:00:03.9]} 36... h2 {[%clk 0:00:08.9]} 37. Bxh2 {[%clk 0:00:04.3]} 37... Rxh2
{[%clk 0:00:09.1]} 38. Rb6 {[%clk 0:00:04.8]} 38... Be1 {[%clk 0:00:05.1]} 39.
a4 {[%clk 0:00:04.4]} 39... a5 {[%clk 0:00:04.9]} 40. Kg4 {[%clk 0:00:04.6]}
40... g6 {[%clk 0:00:05]} 41. Rb7 {[%clk 0:00:04.1]} 41... Kg7 {[%clk
0:00:05.2]} 42. b3 {[%clk 0:00:04.7]} 42... Bb4 {[%clk 0:00:05]} 43. f5 {[%clk
0:00:04.9]} 43... Rg2+ {[%clk 0:00:04.3]} 44. Kf3 {[%clk 0:00:03.7]} 44... Rxg5
{[%clk 0:00:04.3]} 0-1